{"text_format":"1","workbook":"xlsx","n_sheets":3,"sheets":["Лист1","Лист2","Лист3"],"not_rendered":{"charts":0,"images":0,"macros":1,"external_links":0,"defined_names":0,"comments":0,"pivot_tables":0},"unopened":[],"bounds":{"document_bytes":16777216,"sheet_cells":100000,"rows_first":2000,"rows_last":500,"rows_between":2000,"halvings":0,"cell_chars":16384,"cell_head_chars":4096},"cells_cut":0,"cells_raw":0,"read":"whole","date_system":"1900"}

{"sheet":"Лист1","index":0,"n_rows":17,"n_cols":7,"rows_kept":17,"cut":false,"hidden":false,"merged":[]}
["Приоритет 1","Приоритет 2","Приоритет 3","Приоритет 4","Приоритет 5","Выбор первого приорита с минимальным значением","Выбор второго приорита с минимальным значением после первого"]
[2,2,0,1,1,{"$f":"СцепитьЕсли(A2:E2,\"<>2\",$A$1:$E$1,\";\")","v":"Приоритет 3;Приоритет 4;Приоритет 5"},{"$f":"СцепитьЕсли(A2:E2,2,$A$1:$E$1,\";\")","v":"Приоритет 1;Приоритет 2"}]
[2,1,1,2,2,{"$f":"СцепитьЕсли(A3:E3,\"<>2\",$A$1:$E$1,\";\")","v":"Приоритет 2;Приоритет 3"},{"$f":"СцепитьЕсли(A3:E3,2,$A$1:$E$1,\";\")","v":"Приоритет 1;Приоритет 4;Приоритет 5"}]
[2,2,0,2,2,"Приоритет 3","Приоритет 1;Приоритет 2;Приоритет 4;Приоритет 5"]
[2,1,1,2,1,"Приоритет 2;Приоритет 3;Приоритет 5","Приоритет 1;Приоритет 4"]
[2,1,1,2,2,"Приоритет 2;Приоритет 3","Приоритет 1;Приоритет 4;Приоритет 5"]
[0,1,2,2,1,"Приоритет 1;Приоритет 2;Приоритет 5","Приоритет 3;Приоритет 4"]
[2,0,1,2,2,"Приоритет 2;Приоритет 3","Приоритет 1;Приоритет 4;Приоритет 5"]
[0,1,1,1,2,"Приоритет 1;Приоритет 2;Приоритет 3;Приоритет 4","Приоритет 5"]
[0,1,0,2,2,"Приоритет 1;Приоритет 2;Приоритет 3","Приоритет 4;Приоритет 5"]
[2,2,0,1,1,"Приоритет 3;Приоритет 4;Приоритет 5","Приоритет 1;Приоритет 2"]
[0,1,0,1,1,"Приоритет 1;Приоритет 2;Приоритет 3;Приоритет 4;Приоритет 5",""]
[0,0,1,2,1,"Приоритет 1;Приоритет 2;Приоритет 3;Приоритет 5","Приоритет 4"]
[0,1,1,1,2,"Приоритет 1;Приоритет 2;Приоритет 3;Приоритет 4","Приоритет 5"]
[2,1,1,2,0,"Приоритет 2;Приоритет 3;Приоритет 5","Приоритет 1;Приоритет 4"]
[0,1,1,2,1,"Приоритет 1;Приоритет 2;Приоритет 3;Приоритет 5","Приоритет 4"]
[0,1,0,0,0,"Приоритет 1;Приоритет 2;Приоритет 3;Приоритет 4;Приоритет 5",""]

{"sheet":"Лист2","index":1,"n_rows":0,"n_cols":0,"rows_kept":0,"cut":false,"hidden":false,"merged":[]}

{"sheet":"Лист3","index":2,"n_rows":0,"n_cols":0,"rows_kept":0,"cut":false,"hidden":false,"merged":[]}